fUST/lending_fUST_20250624
["ID","MTS","AMOUNT","RATE_DAILY","PERIOD"]
[367383920,1750776639535,-460.0,0.0001837,2]
[367383923,1750776639544,-460.0,0.0001837,2]
[367383924,1750776639553,-460.0,0.0001837,2]
[367383926,1750776639563,-460.0,0.0001837,2]
[367383928,1750776639572,-460.0,0.0001837,2]
[367383930,1750776639581,-287.46108804,0.0001837,2]
[367383932,1750776639590,-540.0,0.0001837,2]
[367383934,1750776639600,-460.0,0.0001837,2]
[367383936,1750776639609,-460.0,0.0001837,2]
[367383938,1750776639618,-460.0,0.0001837,2]
[367383940,1750776639628,-646.72,0.0001837,2]
[367383942,1750776639638,-460.0,0.0001837,2]
[367383944,1750776639648,-460.0,0.0001837,2]
[367383946,1750776639660,-460.0,0.0001837,2]
[367383948,1750776639670,-460.0,0.0001837,2]
[367383950,1750776639678,-156.95776634,0.0001837,2]
[367383952,1750776639698,-460.0,0.0001837,2]
[367383954,1750776639708,-460.0,0.0001837,2]
[367383956,1750776639718,-460.0,0.0001837,2]
[367383958,1750776639729,-460.0,0.0001837,2]
[367383960,1750776639739,-460.0,0.0001837,2]
[367383962,1750776639750,-818.14,0.0001837,2]
[367383964,1750776639760,-460.0,0.0001837,2]
[367383966,1750776639770,-460.0,0.0001837,2]
[367383968,1750776639780,-929.49,0.0001837,2]
[367383970,1750776639790,-460.0,0.0001837,2]
[367383972,1750776639800,-460.0,0.0001837,2]
[367383974,1750776639809,-460.0,0.0001837,2]
[367383976,1750776639819,-460.0,0.0001837,2]
[367383979,1750776639829,-460.0,0.0001837,2]
[367383981,1750776639839,-460.0,0.0001837,2]
[367383982,1750776639850,-208.7,0.0001837,2]
[367383985,1750776639860,-168.66103088,0.0001837,2]
[367383986,1750776639869,-319.20738044,0.0001837,2]
[367383988,1750776639879,-460.0,0.0001837,2]
[367383990,1750776639888,-460.0,0.0001837,2]
[367383992,1750776639897,-460.0,0.0001837,2]
[367383994,1750776639907,-460.0,0.0001837,2]
[367383996,1750776639916,-460.0,0.0001837,2]
[367383998,1750776639926,-460.0,0.0001837,2]
[367384000,1750776639940,-460.0,0.0001837,2]
[367384002,1750776639949,-500.0,0.0001837,2]
[367384004,1750776639959,-1132.91,0.0001837,2]
[367384006,1750776639969,-460.0,0.0001837,2]
[367384008,1750776639978,-460.0,0.0001837,2]
[367384010,1750776639987,-460.0,0.0001837,2]
[367384012,1750776639997,-770.9,0.0001837,2]
[367384014,1750776640006,-770.9,0.0001837,2]
[367384017,1750776640015,-460.0,0.0001837,2]
[367384019,1750776640024,-671.83,0.0001837,2]
[367384021,1750776640034,-460.0,0.0001837,2]
[367384023,1750776640043,-3348.99,0.0001837,2]
[367384025,1750776640052,-460.0,0.0001837,2]
[367384027,1750776640062,-1320.81,0.0001837,2]
[367384029,1750776640071,-460.0,0.0001837,2]
[367384031,1750776640080,-460.0,0.0001837,2]
[367384033,1750776640090,-683.29,0.0001837,2]
[367384035,1750776640103,-881.54,0.0001837,2]
[367384037,1750776640113,-460.0,0.0001837,2]
[367384039,1750776640122,-460.0,0.0001837,2]
[367384041,1750776640131,-1141.53,0.0001837,2]
[367384043,1750776640141,-460.0,0.0001837,2]
[367384045,1750776640152,-460.0,0.0001837,2]
[367384047,1750776640161,-460.0,0.0001837,2]
[367384049,1750776640171,-460.0,0.0001837,2]
[367384051,1750776640180,-3069.37,0.0001837,2]
[367384053,1750776640198,-460.0,0.0001837,2]
[367384055,1750776640207,-460.0,0.0001837,2]
[367384057,1750776640216,-460.0,0.0001837,2]
[367384059,1750776640225,-460.0,0.0001837,2]
[367384061,1750776640234,-505.2,0.0001837,2]
[367384063,1750776640243,-460.0,0.0001837,2]
[367384065,1750776640252,-1425.55,0.0001837,2]
[367384067,1750776640261,-532.41,0.0001837,2]
[367384069,1750776640270,-460.0,0.0001837,2]
[367384071,1750776640279,-460.0,0.0001837,2]
[367384073,1750776640289,-8030.0,0.0001837,2]
[367384075,1750776640298,-668.83,0.0001837,2]
[367384077,1750776640307,-2592.08,0.0001837,2]
[367384078,1750776640316,-460.0,0.0001837,2]
[367384080,1750776640326,-772.56,0.0001837,2]
[367384082,1750776640335,-460.0,0.0001837,2]
[367384084,1750776640344,-460.0,0.0001837,2]
[367384086,1750776640353,-460.0,0.0001837,2]
[367384088,1750776640362,-1189.8,0.0001837,2]
[367384090,1750776640371,-460.0,0.0001837,2]
[367384092,1750776640381,-770.9,0.00018371,2]
[367384094,1750776640389,-4710.01,0.00018371,2]
[367384096,1750776640398,-2141.74,0.00018371,2]
[367384098,1750776640408,-2567.14,0.00018371,2]
[367384100,1750776640417,-460.0,0.00018371,2]
[367384102,1750776640426,-460.0,0.00018371,2]
[367384104,1750776640438,-1837.24,0.00018371,2]
[367384106,1750776640447,-460.0,0.00018371,2]
[367384108,1750776640456,-507.62,0.00018372,2]
[367384110,1750776640465,-888.38,0.00018372,2]
[367384112,1750776640474,-460.0,0.00018372,2]
[367384114,1750776640483,-460.0,0.00018372,2]
[367384116,1750776640492,-460.0,0.00018372,2]
[367384118,1750776640500,-460.0,0.00018372,2]
[367384120,1750776640509,-460.0,0.00018372,2]
[367384122,1750776640519,-460.0,0.00018372,2]
[367384124,1750776640527,-460.0,0.00018372,2]
[367384126,1750776640536,-151.0,0.000184,2]
[367384128,1750776640546,-151.0,0.000185,2]
[367384129,1750776640555,-151.0,0.000185,2]
[367384131,1750776640565,-3568.7216508,0.00018544,2]
[367384133,1750776640574,-770.9,0.00018545,2]
[367384136,1750776640584,-5000.0,0.00018593,2]
[367384138,1750776640594,-151.0,0.000186,2]
[367384140,1750776640603,-151.0,0.000186,2]
[367384142,1750776640613,-460.0,0.00018641,2]
[367384144,1750776640622,-460.0,0.00018641,2]
[367384146,1750776640631,-460.0,0.00018641,2]
[367384148,1750776640641,-830.96,0.00018641,2]
[367384150,1750776640650,-4949.63,0.00018641,2]
[367384152,1750776640660,-460.0,0.00018641,2]
[367384154,1750776640670,-523.81,0.00018641,2]
[367384155,1750776640679,-460.0,0.00018642,2]
[367384157,1750776640693,-460.0,0.00018642,2]
[367384160,1750776640704,-460.0,0.00018642,2]
[367384161,1750776640713,-566.94,0.00018642,2]
[367384164,1750776640723,-460.0,0.00018642,2]
[367384165,1750776640732,-495.22403737,0.00018642,2]
[367384167,1750776640742,-460.0,0.00018642,2]
[367384170,1750776640751,-487.87,0.00018642,2]
[367384171,1750776640762,-460.0,0.00018642,2]
[367384173,1750776640772,-460.0,0.00018642,2]
[367384175,1750776640781,-460.0,0.00018642,2]
[367384177,1750776640790,-1142.84,0.00018642,2]
[367384179,1750776640799,-784.15,0.00018642,2]
[367384181,1750776640808,-460.0,0.00018642,2]
[367384183,1750776640817,-3133.05,0.00018642,2]
[367384185,1750776640826,-3236.21,0.00018642,2]
[367384187,1750776640835,-460.0,0.00018642,2]
[367384189,1750776640844,-1449.18,0.00018642,2]
[367384191,1750776640853,-1075.91,0.00018642,2]
[367384193,1750776640864,-1071.85,0.00018642,2]
[367384195,1750776640873,-460.0,0.00018642,2]
[367384197,1750776640882,-460.0,0.00018642,2]
[367384199,1750776640892,-460.0,0.00018642,2]
[367384201,1750776640901,-636.79,0.00018642,2]
[367384203,1750776640910,-460.0,0.00018642,2]
[367384205,1750776640919,-460.0,0.00018642,2]
[367384207,1750776640929,-460.0,0.00018642,2]
[367384209,1750776640941,-2309.53,0.00018642,2]
[367384211,1750776640950,-460.0,0.00018642,2]
[367384213,1750776640960,-460.0,0.00018642,2]
[367384215,1750776640970,-460.0,0.00018642,2]
[367384217,1750776640979,-2893.22,0.00018642,2]
[367384219,1750776640989,-460.0,0.00018642,2]
[367384221,1750776640998,-460.0,0.00018642,2]
[367384223,1750776641007,-4129.31,0.00018642,2]
[367384225,1750776641016,-460.0,0.00018642,2]
[367384227,1750776641025,-532.61,0.00018642,2]
[367384229,1750776641035,-460.0,0.00018642,2]
[367384231,1750776641043,-460.0,0.00018642,2]
[367384233,1750776641053,-460.0,0.00018642,2]
[367384235,1750776641062,-565.47,0.00018642,2]
[367384237,1750776641071,-460.0,0.00018642,2]
[367384252,1750776641223,-1919.23,0.00018642,2]
[367384254,1750776641234,-935.18,0.00018642,2]
[367384256,1750776641243,-460.0,0.00018642,2]
[367384258,1750776641253,-460.0,0.00018642,2]
[367384260,1750776641263,-605.98986955,0.00018642,2]
[367384262,1750776641272,-460.0,0.00018642,2]
[367384264,1750776641282,-1182.99,0.00018642,2]
[367384266,1750776641291,-460.0,0.00018642,2]
[367384268,1750776641300,-1115.61,0.00018642,2]
[367384270,1750776641309,-460.0,0.00018642,2]
[367384272,1750776641318,-1411.92,0.00018642,2]
[367384274,1750776641326,-1102.7,0.00018642,2]
[367384275,1750776641335,-460.0,0.00018643,2]
[367384277,1750776641344,-460.0,0.00018643,2]
[367384279,1750776641353,-770.9,0.00018643,2]
[367384281,1750776641362,-770.9,0.00018643,2]
[367384283,1750776641372,-770.9,0.00018643,2]
[367384285,1750776641381,-3437.26,0.00018643,2]
[367384287,1750776641391,-460.0,0.00018643,2]
[367384289,1750776641400,-460.0,0.00018643,2]
[367384291,1750776641408,-460.0,0.00018643,2]
[367384293,1750776641417,-984.29,0.00018643,2]
[367384295,1750776641427,-470.72,0.00018643,2]
[367384297,1750776641437,-535.95,0.00018643,2]
[367384299,1750776641447,-1485.9,0.00018643,2]
[367384301,1750776641456,-460.0,0.00018643,2]
[367384303,1750776641466,-460.0,0.00018643,2]
[367384305,1750776641475,-460.0,0.00018643,2]
[367384307,1750776641484,-460.0,0.00018643,2]
[367384308,1750776641492,-460.0,0.00018643,2]
[367384310,1750776641501,-527.15,0.00018643,2]
[367384312,1750776641510,-460.0,0.00018643,2]
[367384314,1750776641519,-460.0,0.00018643,2]
[367384316,1750776641528,-460.0,0.00018643,2]
[367384318,1750776641537,-1035.89,0.00018643,2]
[367384320,1750776641546,-460.0,0.00018643,2]
[367384322,1750776641555,-460.0,0.00018643,2]
[367384324,1750776641563,-1190.38,0.00018643,2]
[367384326,1750776641572,-479.1,0.00018643,2]
[367384328,1750776641581,-531.71,0.00018643,2]
[367384330,1750776641591,-609.1644967,0.00018644,2]
[367384332,1750776641600,-460.0,0.00018644,2]
[367384334,1750776641609,-460.0,0.00018644,2]
[367384336,1750776641618,-265.46,0.00018644,2]
[367384338,1750776641627,-460.0,0.00018644,2]
[367384340,1750776641636,-460.0,0.00018644,2]
[367384342,1750776641645,-646.72,0.00018644,2]
[367384343,1750776641654,-460.0,0.00018644,2]
[367384345,1750776641663,-460.0,0.00018644,2]
[367384347,1750776641673,-460.0,0.00018644,2]
[367384349,1750776641682,-460.0,0.00018644,2]
[367384351,1750776641693,-460.0,0.00018644,2]
[367384353,1750776641703,-460.0,0.00018644,2]
[367384355,1750776641712,-460.0,0.00018644,2]
[367384357,1750776641721,-460.0,0.00018644,2]
[367384359,1750776641732,-460.0,0.00018644,2]
[367384361,1750776641742,-818.14,0.00018644,2]
[367384363,1750776641752,-460.0,0.00018644,2]
[367384365,1750776641761,-460.0,0.00018644,2]
[367384367,1750776641770,-929.49,0.00018644,2]
[367384369,1750776641780,-460.0,0.00018644,2]
[367384371,1750776641789,-460.0,0.00018644,2]
[367384373,1750776641798,-460.0,0.00018644,2]
[367384375,1750776641808,-460.0,0.00018644,2]
[367384377,1750776641818,-460.0,0.00018644,2]
[367384379,1750776641827,-460.0,0.00018644,2]
[367384381,1750776641836,-460.0,0.00018644,2]
[367384382,1750776641845,-460.0,0.00018644,2]
[367384384,1750776641854,-460.0,0.00018644,2]
[367384386,1750776641864,-351.21960985,0.00018644,2]
[367384388,1750776641873,-460.0,0.00018644,2]
[367384390,1750776641882,-460.0,0.00018644,2]
[367384392,1750776641891,-460.0,0.00018644,2]
[367384394,1750776641901,-1132.91,0.00018644,2]
[367384396,1750776641910,-460.0,0.00018644,2]
[367384398,1750776641919,-460.0,0.00018644,2]
[367384400,1750776641929,-460.0,0.00018644,2]
[367384402,1750776641940,-770.9,0.00018644,2]
[367384404,1750776641949,-460.0,0.00018644,2]
[367384406,1750776641959,-671.83,0.00018644,2]
[367384408,1750776641968,-460.0,0.00018644,2]
[367384410,1750776641978,-3348.99,0.00018644,2]
[367384412,1750776641987,-460.0,0.00018644,2]
[367384414,1750776641996,-1320.81,0.00018644,2]
[367384416,1750776642006,-460.0,0.00018644,2]
[367384418,1750776642015,-460.0,0.00018644,2]
[367384420,1750776642025,-683.29,0.00018644,2]
[367384422,1750776642034,-881.54,0.00018644,2]
[367384424,1750776642043,-460.0,0.00018644,2]
[367384425,1750776642053,-553.80277183,0.00018644,2]
[367384427,1750776642062,-1141.53,0.00018644,2]
[367384429,1750776642072,-460.0,0.00018644,2]
[367384431,1750776642081,-460.0,0.00018644,2]
[367384433,1750776642091,-460.0,0.00018644,2]
[367384435,1750776642102,-460.0,0.00018644,2]
[367384437,1750776642111,-3069.37,0.00018644,2]
[367384439,1750776642121,-460.0,0.00018644,2]
[367384441,1750776642130,-460.0,0.00018644,2]
[367384443,1750776642139,-459.73362869,0.00018644,2]
[367384445,1750776642149,-460.0,0.00018644,2]
[367384447,1750776642158,-1425.55,0.00018644,2]
[367384449,1750776642166,-460.0,0.00018644,2]
[367384451,1750776642176,-540.64000395,0.00018644,2]
[367384452,1750776642185,-8030.0,0.00018644,2]
[367384454,1750776642197,-668.83,0.00018644,2]
[367384456,1750776642206,-2592.08,0.00018644,2]
[367384458,1750776642215,-460.0,0.00018644,2]
[367384460,1750776642224,-772.56,0.00018644,2]
[367384462,1750776642233,-460.0,0.00018644,2]
[367384464,1750776642243,-460.0,0.00018644,2]
[367384466,1750776642252,-1189.8,0.00018644,2]
[367384468,1750776642261,-439.6877774,0.00018644,2]
[367384470,1750776642270,-4710.01,0.00018645,2]
[367384472,1750776642279,-770.9,0.00018645,2]
[367384474,1750776642289,-770.9,0.00018645,2]
[367384476,1750776642298,-2141.74,0.00018645,2]
[367384478,1750776642311,-2567.14,0.00018645,2]
[367384480,1750776642321,-460.0,0.00018645,2]
[367384482,1750776642330,-460.0,0.00018645,2]
[367384484,1750776642339,-1837.24,0.00018645,2]
[367384486,1750776642348,-460.0,0.00018645,2]
[367384488,1750776642357,-888.38,0.00018646,2]
[367384490,1750776642366,-460.0,0.00018646,2]
[367384492,1750776642375,-460.0,0.00018646,2]
[367384494,1750776642384,-460.0,0.00018646,2]
[367384495,1750776642393,-460.0,0.00018646,2]
[367384497,1750776642402,-322.0,0.00018646,2]
[367384499,1750776642411,-460.0,0.00018646,2]
[367384501,1750776642419,-151.0,0.000187,2]
[367384503,1750776642428,-151.0,0.000187,2]
[367384505,1750776642439,-151.0,0.000188,2]
[367384507,1750776642448,-151.0,0.000188,2]
[367384509,1750776642457,-3568.72165079,0.00018818,2]
[367384511,1750776642466,-151.0,0.000189,2]
[367384513,1750776642475,-151.0,0.000189,2]
[367384515,1750776642484,-460.0,0.00018915,2]
[367384517,1750776642493,-460.0,0.00018915,2]
[367384519,1750776642502,-460.0,0.00018915,2]
[367384521,1750776642511,-830.96,0.00018915,2]
[367384523,1750776642520,-4949.63,0.00018915,2]
[367384524,1750776642529,-154.46,0.00018915,2]
[367384526,1750776642538,-523.81,0.00018915,2]
[367384528,1750776642547,-460.0,0.00018916,2]
[367384530,1750776642556,-460.0,0.00018916,2]
[367384532,1750776642566,-437.66192859,0.00018916,2]
[367384534,1750776642574,-566.94,0.00018916,2]
[367384536,1750776642583,-460.0,0.00018916,2]
[367384538,1750776642593,-225.31745559,0.00018916,2]
[367384540,1750776642602,-460.0,0.00018916,2]
[367384542,1750776642611,-460.0,0.00018916,2]
[367384544,1750776642620,-1142.84,0.00018916,2]
[367384546,1750776642629,-784.15,0.00018916,2]
[367384548,1750776642638,-415.66000001,0.00018916,2]
[367384550,1750776642647,-3133.05,0.00018916,2]
[367384552,1750776642656,-3236.21,0.00018916,2]
[367384554,1750776642666,-460.0,0.00018916,2]
[367384556,1750776642675,-1449.18,0.00018916,2]
[367384558,1750776642684,-1075.91,0.00018916,2]
[367384560,1750776642698,-1071.85,0.00018916,2]
[367384562,1750776642707,-460.0,0.00018916,2]
[367384564,1750776642717,-487.84857995,0.00018916,2]
[367384566,1750776642726,-508.85404565,0.00018916,2]
[367384568,1750776642735,-636.79,0.00018916,2]
[367384570,1750776642745,-460.0,0.00018916,2]
[367384572,1750776642754,-460.0,0.00018916,2]
[367384574,1750776642763,-460.0,0.00018916,2]
[367384576,1750776642772,-2309.53,0.00018916,2]
[367384577,1750776642781,-460.0,0.00018916,2]
[367384580,1750776642790,-460.0,0.00018916,2]
[367384582,1750776642799,-2893.22,0.00018916,2]
[367384584,1750776642808,-4129.31,0.00018916,2]
[367384586,1750776642817,-460.0,0.00018916,2]
[367384588,1750776642826,-532.61,0.00018916,2]
[367384590,1750776642835,-460.0,0.00018916,2]
[367384592,1750776642844,-460.0,0.00018916,2]
[367384594,1750776642853,-460.0,0.00018916,2]
[367384596,1750776642866,-460.0,0.00018916,2]
[367384598,1750776642876,-1919.23,0.00018916,2]
[367384600,1750776642885,-935.18,0.00018916,2]
[367384603,1750776642895,-460.0,0.00018916,2]
[367384605,1750776642904,-460.0,0.00018916,2]
[367384607,1750776642913,-460.0,0.00018916,2]
[367384609,1750776642922,-1182.99,0.00018916,2]
[367384611,1750776642931,-460.0,0.00018916,2]
[367384613,1750776642942,-1115.61,0.00018916,2]
[367384615,1750776642951,-536.46,0.00018916,2]
[367384619,1750776642960,-1411.92,0.00018916,2]
[367384622,1750776642969,-1102.7,0.00018916,2]
[367384624,1750776642978,-460.0,0.00018917,2]
[367384626,1750776642987,-460.0,0.00018917,2]
[367384629,1750776642998,-770.9,0.00018917,2]
[367384632,1750776643007,-770.9,0.00018917,2]
[367384635,1750776643016,-3437.26,0.00018917,2]
[367384638,1750776643025,-460.0,0.00018917,2]
[367384641,1750776643035,-460.0,0.00018917,2]
[367384643,1750776643044,-460.0,0.00018917,2]
[367384645,1750776643053,-984.29,0.00018917,2]
[367384647,1750776643062,-470.72,0.00018917,2]
[367384649,1750776643071,-1485.9,0.00018917,2]
[367384651,1750776643080,-460.0,0.00018917,2]
[367384653,1750776643089,-460.0,0.00018917,2]
[367384655,1750776643100,-460.0,0.00018917,2]
[367384657,1750776643110,-460.0,0.00018917,2]
[367384659,1750776643119,-460.0,0.00018917,2]
[367384661,1750776643127,-527.15,0.00018917,2]
[367384663,1750776643136,-460.0,0.00018917,2]
[367384665,1750776643146,-460.0,0.00018917,2]
[367384667,1750776643155,-1035.89,0.00018917,2]
[367384668,1750776643164,-460.0,0.00018917,2]
[367384670,1750776643174,-460.0,0.00018917,2]
[367384672,1750776643183,-1190.38,0.00018917,2]
[367384674,1750776643194,-479.1,0.00018917,2]
[367384676,1750776643204,-460.0,0.00018918,2]
[367384678,1750776643213,-454.74908266,0.00018918,2]
[367384680,1750776643222,-183.68,0.00018918,2]
[367384682,1750776643231,-646.72,0.00018918,2]
[367384685,1750776643240,-460.0,0.00018918,2]
[367384687,1750776643249,-590.54286958,0.00018918,2]
[367384690,1750776643258,-460.0,0.00018918,2]
[367384693,1750776643267,-460.0,0.00018918,2]
[367384696,1750776643275,-460.0,0.00018918,2]
[367384699,1750776643284,-460.0,0.00018918,2]
[367384702,1750776643294,-818.14,0.00018918,2]
[367384705,1750776643303,-460.0,0.00018918,2]
[367384707,1750776643312,-594.48,0.00018918,2]
[367384710,1750776643321,-929.49,0.00018918,2]
[367384713,1750776643330,-460.0,0.00018918,2]
[367384715,1750776643341,-460.0,0.00018918,2]
[367384717,1750776643355,-460.0,0.00018918,2]
[367384719,1750776643365,-461.26898846,0.00018918,2]
[367384721,1750776643374,-460.0,0.00018918,2]
[367384723,1750776643383,-201.44,0.00018918,2]
[367384725,1750776643392,-460.0,0.00018918,2]
[367384727,1750776643401,-460.0,0.00018918,2]
[367384729,1750776643410,-460.0,0.00018918,2]
[367384731,1750776643419,-460.0,0.00018918,2]
[367384733,1750776643428,-460.0,0.00018918,2]
[367384735,1750776643438,-1132.91,0.00018918,2]
[367384737,1750776643447,-460.0,0.00018918,2]
[367384739,1750776643456,-460.0,0.00018918,2]
[367384741,1750776643465,-460.0,0.00018918,2]
[367384743,1750776643474,-770.9,0.00018918,2]
[367384745,1750776643483,-770.9,0.00018918,2]
[367384747,1750776643492,-460.0,0.00018918,2]
[367384749,1750776643501,-671.83,0.00018918,2]
[367384751,1750776643510,-460.0,0.00018918,2]
[367384753,1750776643519,-3348.99,0.00018918,2]
[367384755,1750776643529,-460.0,0.00018918,2]
[367384757,1750776643538,-1320.81,0.00018918,2]
[367384758,1750776643548,-460.0,0.00018918,2]
[367384760,1750776643558,-460.0,0.00018918,2]
[367384762,1750776643569,-683.29,0.00018918,2]
[367384764,1750776643578,-881.54,0.00018918,2]
[367384767,1750776643587,-460.0,0.00018918,2]
[367384768,1750776643597,-1141.53,0.00018918,2]
[367384772,1750776643606,-460.0,0.00018918,2]
[367384775,1750776643615,-460.0,0.00018918,2]
[367384777,1750776643625,-460.0,0.00018918,2]
[367384779,1750776643634,-3069.37,0.00018918,2]
[367384781,1750776643643,-460.0,0.00018918,2]
[367384782,1750776643652,-460.0,0.00018918,2]
[367384784,1750776643662,-460.0,0.00018918,2]
[367384786,1750776643671,-1425.55,0.00018918,2]
[367384788,1750776643680,-460.0,0.00018918,2]
[367384790,1750776643690,-8030.0,0.00018918,2]
[367384793,1750776643700,-668.83,0.00018918,2]
[367384795,1750776643710,-2592.08,0.00018918,2]
[367384797,1750776643719,-772.56,0.00018918,2]
[367384798,1750776643728,-460.0,0.00018918,2]
[367384801,1750776643738,-460.0,0.00018918,2]
[367384802,1750776643746,-1189.8,0.00018918,2]
[367384804,1750776643755,-4710.01,0.00018919,2]
[367384806,1750776643764,-770.9,0.00018919,2]
[367384808,1750776643773,-2141.74,0.00018919,2]
[367384810,1750776643781,-2567.14,0.00018919,2]
[367384812,1750776643790,-460.0,0.00018919,2]
[367384814,1750776643799,-460.0,0.00018919,2]
[367384816,1750776643809,-1837.24,0.00018919,2]
[367384818,1750776643818,-460.0,0.00018919,2]
[367384820,1750776643827,-888.38,0.0001892,2]
[367384822,1750776643836,-460.0,0.0001892,2]
[367384824,1750776643845,-609.27327585,0.0001892,2]
[367384826,1750776643854,-392.73947069,0.0001892,2]
[367384828,1750776643863,-460.0,0.0001892,2]
[367384830,1750776643872,-460.0,0.0001892,2]
[367384832,1750776643882,-301.0,0.00018954,2]
[367384834,1750776643891,-770.9,0.00018999,2]
[367384836,1750776643900,-770.9,0.00018999,2]
[367384838,1750776643911,-770.9,0.00018999,2]
[367384840,1750776643920,-770.9,0.00018999,2]
[367384842,1750776643929,-770.91556709,0.00018999,2]
[367384844,1750776643939,-11736.23487999,0.00019,2]
[367384846,1750776643948,-36359.19400879,0.00019,2]
[367384848,1750776643957,-151.0,0.00019,2]
[367384850,1750776643966,-151.0,0.00019,2]
[367384852,1750776643975,-460.0,0.00019016,2]
[367384854,1750776643985,-460.0,0.00019016,2]
[367384856,1750776643994,-460.0,0.00019016,2]
[367384858,1750776644003,-353.24921236,0.00019016,2]
[367384860,1750776644013,-460.0,0.00019016,2]
[367384862,1750776644022,-460.0,0.00019016,2]
[367384864,1750776644031,-460.0,0.00019016,2]
[367384866,1750776644040,-460.0,0.00019016,2]
[367384868,1750776644050,-567.86,0.00019016,2]
[367384870,1750776644059,-278.52815494,0.00019016,2]
[367384872,1750776644068,-460.0,0.00019016,2]
[367384874,1750776644077,-460.0,0.00019017,2]
[367384876,1750776644086,-460.0,0.00019017,2]
[367384891,1750776644210,-460.0,0.00019017,2]
[367384894,1750776644236,-460.0,0.00019017,2]
[367384896,1750776644245,-460.0,0.00019017,2]
[367384898,1750776644254,-460.0,0.00019017,2]
[367384900,1750776644262,-460.0,0.00019017,2]
[367384901,1750776644272,-403.75503242,0.00019017,2]
[367384903,1750776644281,-460.0,0.00019017,2]
[367384905,1750776644290,-460.0,0.00019017,2]
[367384907,1750776644300,-460.0,0.00019017,2]
[367384909,1750776644309,-1000.0,0.00019073,2]
[367384911,1750776644318,-207.4,0.00019074,2]
[367384913,1750776644327,-5000.0,0.00019074,2]
[367384915,1750776644337,-1157.0,0.00019084,2]
[367384918,1750776644346,-3568.72165079,0.00019092,2]
[367384920,1750776644355,-151.0,0.000191,2]
[367384922,1750776644364,-151.0,0.000191,2]
[367384924,1750776644374,-376.0,0.00019132,2]
[367384925,1750776644383,-500.0,0.00019178,2]
[367384927,1750776644392,-260.23193862,0.00019178,2]
[367384929,1750776644402,-215.493443,0.00019178,2]
[367384931,1750776644412,-6535.021591,0.00019178,2]
[367384934,1750776644422,-160.45182555,0.00019189,2]
[367384935,1750776644432,-460.0,0.00019189,2]
[367384938,1750776644443,-460.0,0.00019189,2]
[367384939,1750776644452,-830.96,0.00019189,2]
[367384941,1750776644461,-4949.63,0.00019189,2]
[367384943,1750776644471,-523.81,0.00019189,2]
[367384945,1750776644480,-460.0,0.0001919,2]
[367384947,1750776644489,-460.0,0.0001919,2]
[367384949,1750776644499,-566.94,0.0001919,2]
[367384951,1750776644508,-460.0,0.0001919,2]
[367384953,1750776644518,-460.0,0.0001919,2]